bitfinex-derivatives/quotes_BTCF0:USTF0_20251209
["timestamp","ask_amount","ask_price","bid_price","bid_amount"]
[1765268512193,0.09088889,90632.0,90612.0,0.57859525]
[1765268512194,0.05902,90621.0,90620.0,0.05943705]
[1765268512394,0.05902,90621.0,90615.0,0.00110358]
[1765268512395,0.07532,90616.0,90615.0,0.00110358]
[1765268513002,0.0992854,90616.0,90615.0,0.00110358]
[1765268513703,0.0992854,90616.0,90615.0,0.03237358]
[1765268514096,0.0992854,90616.0,90615.0,0.03437358]
[1765268514904,0.0992854,90616.0,90615.0,0.03337358]
[1765268515407,0.0992854,90616.0,90615.0,0.06240358]
[1765268517202,0.07532,90616.0,90615.0,0.06240358]
[1765268519808,0.43612,90616.0,90615.0,0.06240358]
[1765268521609,0.43612,90616.0,90615.0,0.00410358]
[1765268522110,0.0700568,90607.0,90606.0,0.04693921]
[1765268522312,0.4308568,90607.0,90606.0,0.00016546]
[1765268523411,0.4308568,90607.0,90606.0,0.02943546]
[1765268523818,0.4308568,90607.0,90606.0,0.03043546]
[1765268525416,0.4308568,90607.0,90606.0,0.05950546]
[1765268525718,0.4308568,90607.0,90606.0,0.03043546]
[1765268528117,0.4308568,90607.0,90606.0,0.00116546]
[1765268528617,0.4308568,90607.0,90606.0,0.03036546]
[1765268530221,0.4308568,90607.0,90606.0,0.05943546]
[1765268532423,0.41982,90607.0,90606.0,0.45943546]
[1765268538224,0.05902,90607.0,90606.0,0.45943546]
[1765268538526,0.41719,90616.0,90615.0,0.05827]
[1765268538822,0.3608,90616.0,90615.0,0.47827]
[1765268539028,0.38955,90616.0,90615.0,0.47827]
[1765268540126,0.41719,90616.0,90615.0,0.47827]
[1765268540329,0.42019,90616.0,90615.0,0.47827]
[1765268540525,0.39255,90616.0,90615.0,0.47827]
[1765268541229,0.39155,90616.0,90615.0,0.47827]
[1765268543631,0.03075,90616.0,90615.0,0.47827]
[1765268544932,0.05989,90616.0,90615.0,0.47827]
[1765268547438,0.07335,90616.0,90615.0,0.47827]
[1765268547639,0.07335,90616.0,90609.0,0.05943705]
[1765268547939,0.05664,90610.0,90609.0,0.46596]
[1765268548440,0.0676765,90610.0,90609.0,0.46596]
[1765268548637,0.0676765,90610.0,90609.0,0.31536561]
[1765268549228,0.05664,90610.0,90609.0,0.31636561]
[1765268549743,0.05764,90610.0,90609.0,0.31636561]
[1765268549942,0.05764,90610.0,90609.0,0.31536561]
[1765268550143,0.05764,90610.0,90609.0,0.31636561]
[1765268550331,0.05764,90610.0,90609.0,0.11636561]
[1765268550531,0.05764,90610.0,90609.0,0.05696]
[1765268553547,0.05764,90610.0,90609.0,0.0679966]
[1765268553951,0.05764,90610.0,90609.0,0.05696]
[1765268554450,0.05764,90610.0,90609.0,0.0679966]
[1765268554639,0.05764,90610.0,90609.0,0.05696]
[1765268560647,0.08161419,90610.0,90609.0,0.001]
[1765268560952,0.44241419,90610.0,90609.0,0.001]
[1765268561752,0.44241419,90610.0,90609.0,0.05696]
[1765268562051,0.08161419,90610.0,90609.0,0.05696]
[1765268564658,0.08161419,90610.0,90609.0,0.40696]
[1765268565252,0.08161419,90610.0,90609.0,0.05696]
[1765268568652,0.08161419,90610.0,90609.0,0.0679977]
[1765268572856,0.08161419,90610.0,90609.0,0.4979977]
[1765268574166,0.08161419,90610.0,90609.0,0.05696]
[1765268574761,0.08161419,90610.0,90609.0,0.001]
[1765268574960,0.08161419,90610.0,90609.0,0.05757]
[1765268575462,0.08161419,90610.0,90609.0,0.02835]
[1765268575657,0.08161419,90610.0,90609.0,0.05757]
[1765268575853,0.08161419,90610.0,90609.0,0.001]
[1765268576259,0.0551,90607.0,90606.0,0.00016546]
[1765268576452,0.07907419,90607.0,90606.0,0.00016546]
[1765268577557,0.07907419,90607.0,90606.0,0.00116546]
[1765268579264,0.08007419,90607.0,90606.0,0.00116546]
[1765268579860,0.08007419,90607.0,90606.0,0.00016546]
[1765268580564,0.08007419,90607.0,90606.0,0.02751546]
[1765268580764,0.08007419,90607.0,90606.0,0.03855356]
[1765268581063,0.08007419,90607.0,90606.0,0.06777356]
[1765268581258,0.02894,90607.0,90606.0,0.46777356]
[1765268581674,0.0561,90607.0,90606.0,0.46777356]
[1765268582563,0.38876,90611.0,90610.0,0.0825076]
[1765268582758,0.44190799,90611.0,90610.0,0.4925076]
[1765268583956,0.44190799,90611.0,90610.0,0.1083676]
[1765268584260,0.44290799,90611.0,90610.0,0.1263276]
[1765268584565,0.44290799,90611.0,90610.0,0.4063276]
[1765268585062,0.44301807,90611.0,90610.0,0.4063276]
[1765268592172,0.44301807,90611.0,90610.0,0.0683676]
[1765268592468,0.44301807,90611.0,90610.0,0.4283676]
[1765268593170,0.08221807,90611.0,90610.0,0.4283676]
[1765268595971,0.08221807,90611.0,90610.0,0.02759]
[1765268596172,0.08221807,90611.0,90610.0,0.05733]
[1765268598576,0.08221807,90611.0,90610.0,0.47733]
[1765268601379,0.08221807,90611.0,90610.0,0.05733]
[1765268607173,0.08221807,90611.0,90610.0,0.02759]
[1765268607487,0.0585,90607.0,90606.0,0.06919346]
[1765268607670,0.08258807,90607.0,90606.0,0.15919346]
[1765268609183,0.08258807,90607.0,90606.0,0.41919346]
[1765268609583,0.08258807,90607.0,90606.0,0.42019346]
[1765268610279,0.08258807,90607.0,90606.0,0.41919346]
[1765268610481,0.08258807,90607.0,90606.0,0.42019346]
[1765268612279,0.05336807,90607.0,90606.0,0.42019346]
[1765268612489,0.02408807,90607.0,90606.0,0.42019346]
[1765268612688,0.0585,90615.0,90614.0,0.0690271]
[1765268612987,0.08260886,90615.0,90614.0,0.0690271]
[1765268621196,0.08260886,90615.0,90614.0,0.05799]
[1765268622288,0.08260886,90615.0,90614.0,0.0690271]
[1765268631399,0.08260886,90615.0,90614.0,0.05799]
[1765268633401,0.44291886,90607.0,90606.0,0.07860546]
[1765268634499,0.44291886,90607.0,90606.0,0.07960546]
[1765268634696,0.44291886,90607.0,90606.0,0.08060546]
[1765268639201,0.44291886,90607.0,90606.0,0.02216546]
[1765268639503,0.44291886,90607.0,90606.0,0.08060546]
[1765268639705,0.44291886,90607.0,90606.0,0.42060546]
[1765268640307,0.44291886,90607.0,90606.0,0.00216546]
[1765268641504,0.44291886,90607.0,90606.0,0.03183546]
[1765268641704,0.45395686,90607.0,90606.0,0.00216546]
[1765268641903,0.44291886,90607.0,90606.0,0.03183546]
[1765268643405,0.44291886,90607.0,90606.0,0.00216546]
[1765268643809,0.44291886,90607.0,90606.0,0.02954546]
[1765268645714,0.44291886,90607.0,90606.0,0.05881546]
[1765268645921,0.44291886,90607.0,90606.0,0.02954546]
[1765268646120,0.44291886,90607.0,90606.0,0.00216546]
[1765268646621,0.44291886,90607.0,90606.0,0.02954546]
[1765268647324,0.44291886,90607.0,90606.0,0.00216546]
[1765268648223,0.44291886,90607.0,90606.0,0.02954546]
[1765268648722,0.44291886,90607.0,90606.0,0.00216546]
[1765268648929,0.44291886,90607.0,90606.0,0.02954546]
[1765268649727,0.44291886,90607.0,90606.0,0.06985356]
[1765268650316,0.44291886,90607.0,90606.0,0.00216546]
[1765268652420,0.44291886,90607.0,90606.0,0.00116546]
[1765268652621,0.44291886,90607.0,90606.0,0.00216546]
[1765268653032,0.44291886,90607.0,90606.0,0.00116546]
[1765268654824,0.05775,90598.0,90597.0,0.04679304]
[1765268655133,0.07502,90591.0,90590.0,0.01214388]
[1765268655432,0.07502,90591.0,90590.0,0.47994029]
[1765268655635,0.05775,90591.0,90590.0,0.47994029]
[1765268656925,0.05775,90591.0,90590.0,0.48294029]
[1765268658130,0.05775,90591.0,90590.0,0.47190029]
[1765268658337,0.05775,90591.0,90590.0,0.47590029]
[1765268664429,0.02848,90591.0,90590.0,0.47590029]
[1765268664830,0.05741,90591.0,90590.0,0.47590029]
[1765268667430,0.3608,90598.0,90590.0,0.47590029]
[1765268667639,0.02972556,90600.0,90599.0,0.0567]
[1765268667939,0.02972556,90600.0,90599.0,0.1867]
[1765268668124,0.00016556,90600.0,90599.0,0.4067]
[1765268668837,0.00016556,90600.0,90599.0,0.4087]
[1765268669444,0.00016556,90600.0,90599.0,0.4097]
[1765268670246,0.00016556,90600.0,90599.0,0.4077]
[1765268670426,0.00016556,90600.0,90599.0,0.4107]
[1765268671247,0.00016556,90600.0,90599.0,0.4097]
[1765268671539,0.00016556,90600.0,90599.0,0.4107]
[1765268671943,0.00016556,90600.0,90599.0,0.4087]
[1765268672146,0.00016556,90600.0,90599.0,0.4107]
[1765268675035,0.00016556,90600.0,90599.0,0.4087]
[1765268675244,0.00016556,90600.0,90599.0,0.4107]
[1765268675934,0.00016556,90600.0,90599.0,0.4087]
[1765268676143,0.00016556,90600.0,90599.0,0.4107]
[1765268676739,0.00016556,90600.0,90599.0,0.4087]
[1765268676942,0.00016556,90600.0,90599.0,0.4107]
[1765268677338,0.00016556,90600.0,90599.0,0.4117]
[1765268678246,0.05865556,90600.0,90599.0,0.4497]
[1765268678433,0.05865556,90600.0,90599.0,0.4517]
[1765268679741,0.05865556,90600.0,90599.0,0.4507]
[1765268680245,0.05865556,90600.0,90599.0,0.4487]
[1765268680444,0.05865556,90600.0,90599.0,0.4507]
[1765268680847,0.05865556,90600.0,90599.0,0.4487]
[1765268681044,0.05865556,90600.0,90599.0,0.4507]
[1765268683844,0.05865556,90600.0,90599.0,0.1407]
[1765268684051,0.07121556,90600.0,90599.0,0.1407]
[1765268684343,0.05865556,90600.0,90599.0,0.1407]
[1765268684952,0.1008462,90600.0,90599.0,0.0607]
[1765268685341,0.0828462,90600.0,90599.0,0.0607]
[1765268686452,0.0828462,90600.0,90599.0,0.0587]
[1765268686649,0.0828462,90600.0,90599.0,0.0607]
[1765268687351,0.0828462,90600.0,90599.0,0.0597]
[1765268688951,0.4436462,90600.0,90599.0,0.0597]
[1765268689148,0.0828462,90600.0,90599.0,0.0597]
[1765268689355,0.4436462,90600.0,90599.0,0.0597]
[1765268690446,0.4436462,90600.0,90599.0,0.4297]
[1765268693758,0.44365382,90600.0,90599.0,0.4297]
[1765268695957,0.44365382,90600.0,90599.0,0.0597]
[1765268701871,0.45642382,90600.0,90599.0,0.0597]
[1765268702067,0.45642382,90600.0,90599.0,0.003]
[1765268702269,0.49990039,90600.0,90599.0,0.003]
[1765268702567,0.07562,90591.0,90590.0,0.00110388]
[1765268702762,0.46061826,90591.0,90590.0,0.00110388]
[1765268703165,0.46061826,90591.0,90590.0,0.05899388]
[1765268703372,0.44335826,90591.0,90590.0,0.05899388]
[1765268703777,0.44335826,90591.0,90590.0,0.06299388]
[1765268704076,0.44335826,90591.0,90590.0,0.06599388]
[1765268704276,0.05326826,90591.0,90590.0,0.43703388]
[1765268704470,0.37373556,90600.0,90590.0,0.43703388]
[1765268704471,0.43209556,90600.0,90599.0,0.05789]
[1765268704667,0.45634217,90600.0,90599.0,0.05789]
[1765268705572,0.45634217,90600.0,90599.0,0.40789]
[1765268705776,0.45634217,90600.0,90599.0,0.05889]
[1765268706173,0.45634217,90600.0,90599.0,0.05989]
[1765268706480,0.44357217,90600.0,90599.0,0.05989]
[1765268706685,0.05836,90621.0,90620.0,0.05789]
[1765268706875,0.05836,90621.0,90620.0,0.41869]
[1765268707183,0.05836,90621.0,90620.0,0.77869]
[1765268707483,0.01726,90632.0,90620.0,0.76535]
[1765268707678,0.07562,90632.0,90631.0,0.05789]
[1765268707978,0.07562,90632.0,90631.0,0.02984]
[1765268708275,0.07562,90632.0,90629.0,0.0110353]
[1765268708276,0.05836,90630.0,90629.0,0.0408753]
[1765268708470,0.05836,90630.0,90629.0,0.0110353]
[1765268708671,0.05836,90629.0,90628.0,0.3608]
[1765268708974,0.05836,90629.0,90628.0,0.3718354]
[1765268709977,0.05836,90629.0,90628.0,0.4016754]
[1765268710180,0.06036,90629.0,90628.0,0.4016754]
[1765268712883,0.06036,90629.0,90628.0,0.4297254]
[1765268713285,0.06036,90629.0,90628.0,0.3718354]
[1765268713483,0.0713953,90629.0,90628.0,0.3608]
[1765268716189,0.0713953,90629.0,90628.0,0.39064]
[1765268717588,0.0713953,90629.0,90628.0,0.3608]
[1765268717788,0.05836,90621.0,90620.0,0.4297263]
[1765268718992,0.05836,90621.0,90620.0,0.4307263]
[1765268727696,0.05836,90621.0,90620.0,0.4477163]
[1765268736300,0.08283467,90621.0,90620.0,0.4477163]
[1765268746110,0.05354467,90621.0,90620.0,0.4477163]
[1765268749719,0.08697467,90621.0,90620.0,0.4307263]
[1765268752714,0.05354467,90621.0,90620.0,0.4307263]
[1765268752917,0.08448467,90621.0,90620.0,0.4307263]
[1765268764735,0.08448467,90621.0,90620.0,0.0699263]
[1765268766428,0.02447467,90621.0,90620.0,0.0699263]
[1765268767639,0.02447467,90621.0,90620.0,0.4999263]
[1765268767840,0.02447467,90621.0,90620.0,0.8607263]
[1765268772256,0.05213467,90621.0,90620.0,0.8607263]
[1765268773257,0.02766,90621.0,90620.0,0.8607263]
[1765268773558,0.05211587,90621.0,90620.0,0.8607263]
[1765268774057,0.02766,90621.0,90620.0,0.8607263]
[1765268774252,0.05211587,90621.0,90620.0,0.8607263]
[1765268777157,0.05211587,90621.0,90620.0,0.8693663]
[1765268777960,0.05211587,90621.0,90620.0,0.5085663]
[1765268778155,0.05211587,90621.0,90620.0,0.8693663]
[1765268779862,0.05211587,90621.0,90620.0,0.5993663]
[1765268780264,0.08231587,90621.0,90620.0,0.4393663]
[1765268784861,0.05211587,90621.0,90620.0,0.4393663]
[1765268785766,0.02445587,90621.0,90620.0,0.4393663]
[1765268786666,0.05416587,90621.0,90620.0,0.4393663]
[1765268790266,0.08264587,90621.0,90620.0,0.4393663]
[1765268802971,0.08264587,90621.0,90620.0,0.8001663]
[1765268805374,0.02445587,90621.0,90620.0,0.8001663]
[1765268806175,0.05416587,90621.0,90620.0,0.8001663]
[1765268806871,0.02445587,90621.0,90620.0,0.8001663]
[1765268814777,0.00016556,90635.0,90634.0,0.0788947]
[1765268814984,0.05949,90637.0,90636.0,0.07256]
[1765268816478,0.06349,90637.0,90636.0,0.08356866]
[1765268816977,0.06349,90637.0,90636.0,0.45356866]
[1765268817777,0.06549,90637.0,90636.0,0.45356866]
[1765268827082,0.06549,90637.0,90636.0,0.5042274]
[1765268827281,0.06549,90637.0,90636.0,0.45356866]
[1765268827582,0.06549,90637.0,90636.0,0.50356866]
[1765268838692,0.06549,90637.0,90636.0,1.22516866]
[1765268841396,0.12247,90637.0,90636.0,1.17516866]
[1765268842097,0.09375,90637.0,90636.0,1.17516866]
[1765268842294,0.12208,90637.0,90636.0,0.7216]
[1765268842495,0.14606245,90637.0,90636.0,0.3608]
[1765268843410,0.05697,90628.0,90627.0,0.0683455]
[1765268844700,0.08096804,90628.0,90627.0,0.0683455]
[1765268844900,0.08296804,90628.0,90627.0,0.0683455]
[1765268845400,0.05897,90628.0,90627.0,0.0683455]
[1765268846892,0.08296006,90628.0,90627.0,0.0683455]
[1765268847090,0.01702,90624.0,90622.0,0.3608]
[1765268847394,0.05697,90623.0,90622.0,0.3608]
[1765268848106,0.05697,90623.0,90622.0,0.41811]
[1765268850003,0.07451,90633.0,90632.0,0.0683449]
[1765268850203,0.08094109,90633.0,90632.0,0.0683449]
[1765268851004,0.08094109,90633.0,90632.0,0.0862749]
[1765268851207,0.08394109,90633.0,90632.0,0.0862749]
[1765268851408,0.02797109,90633.0,90632.0,0.0862749]
[1765268851704,0.02797109,90633.0,90632.0,0.4562749]
[1765268851705,0.004,90633.0,90632.0,0.4562749]
[1765268858608,0.06097,90633.0,90632.0,0.4562749]
[1765268858810,0.06097,90633.0,90632.0,0.0862749]
[1765268861801,0.004,90633.0,90632.0,0.0862749]
[1765268862211,0.03264,90633.0,90632.0,0.0862749]
[1765268866318,0.004,90633.0,90632.0,0.0862749]
[1765268866725,0.03264,90633.0,90632.0,0.0862749]
[1765268870912,0.06097,90633.0,90632.0,0.0862749]
[1765268873620,0.06097,90633.0,90632.0,0.0683449]
[1765268875322,0.06097,90633.0,90632.0,0.05731]
[1765268875621,0.05817,90631.0,90630.0,0.3608]
[1765268875826,0.05817,90631.0,90630.0,0.3886]
[1765268876212,0.05817,90631.0,90630.0,0.41802]
[1765268876927,0.06117,90631.0,90630.0,0.41802]
[1765268879432,0.08527986,90631.0,90630.0,0.41802]
[1765268881431,0.08528956,90631.0,90630.0,0.41802]
[1765268892436,0.08528956,90631.0,90630.0,0.42834]
[1765268893635,0.08528956,90631.0,90630.0,0.41802]
[1765268898453,0.08528956,90631.0,90630.0,0.05722]
[1765268905752,0.08528956,90631.0,90630.0,0.45394]
[1765268905753,0.02711956,90631.0,90630.0,0.45394]
[1765268905954,0.003,90631.0,90630.0,0.45394]
[1765268906252,0.03239,90631.0,90630.0,0.19394]
[1765268906450,0.08540392,90631.0,90630.0,0.19394]
[1765268909359,0.05645392,90631.0,90630.0,0.19394]
[1765268909661,0.08540392,90631.0,90630.0,0.19394]
[1765268909859,0.08540392,90631.0,90630.0,0.47394]
[1765268910061,0.05645392,90631.0,90630.0,0.47394]
[1765268910561,0.02706392,90631.0,90630.0,0.47394]
[1765268911560,0.02706392,90631.0,90630.0,0.23394]
[1765268913059,0.02706392,90631.0,90630.0,0.59474]
[1765268918156,0.08540392,90631.0,90630.0,0.59474]
[1765268918353,0.08540392,90631.0,90630.0,0.43474]
[1765268919062,0.08540392,90631.0,90630.0,0.41802]
[1765268919557,0.08540392,90631.0,90630.0,0.3608]
[1765268919763,0.08540392,90631.0,90621.0,0.02967]
[1765268919764,0.0110361,90622.0,90621.0,0.02967]
[1765268919957,0.0693761,90622.0,90621.0,0.05747]
[1765268920265,0.09344002,90622.0,90621.0,0.05747]
[1765268923066,0.02506392,90622.0,90621.0,0.84428]
[1765268923362,0.08340392,90622.0,90621.0,0.84428]
[1765268924352,0.05445392,90622.0,90621.0,0.84428]
[1765268924666,0.05345392,90622.0,90621.0,0.84428]
[1765268925167,0.08240392,90622.0,90621.0,0.84428]
[1765268927365,0.05834,90622.0,90621.0,0.84428]
[1765268927658,0.0693753,90629.0,90628.0,0.05747]
[1765268927860,0.0933337,90629.0,90628.0,0.05747]
[1765268929054,0.0953337,90629.0,90628.0,0.05747]
[1765268930163,0.0842984,90629.0,90628.0,0.05747]
[1765268930368,0.0259584,90629.0,90628.0,0.45747]
[1765268930551,0.002,90629.0,90628.0,0.45747]
[1765268948071,0.002,90629.0,90628.0,0.81827]
[1765268949276,0.002,90629.0,90628.0,0.83522]
[1765268954777,0.002,90629.0,90628.0,0.47442]
[1765268954969,0.002,90629.0,90628.0,0.83522]
[1765268956172,0.002,90629.0,90628.0,0.47442]
[1765268956380,0.002,90629.0,90628.0,0.83522]
[1765268958178,0.002,90629.0,90628.0,0.47442]
[1765268958378,0.002,90629.0,90628.0,0.83522]
[1765268959378,0.02595371,90629.0,90628.0,0.83522]
[1765268960076,0.02595371,90629.0,90628.0,0.47442]
[1765268960273,0.02595371,90629.0,90628.0,0.89467337]
[1765268961477,0.08199371,90629.0,90628.0,0.42827]
[1765268961878,0.0110366,90618.0,90617.0,0.00016556]
[1765268962076,0.46998031,90618.0,90617.0,0.00016556]
[1765268962478,0.46998031,90618.0,90617.0,0.02720556]
[1765268963279,0.46998031,90618.0,90617.0,0.02820556]
[1765268963473,0.46998031,90618.0,90617.0,0.05638556]
[1765268964387,0.46998031,90618.0,90617.0,0.05738556]
[1765268964769,0.09814371,90618.0,90617.0,0.06842226]
[1765268965174,0.09814371,90618.0,90617.0,0.06642226]
[1765268965683,0.08056371,90618.0,90617.0,0.06642226]
[1765268966877,0.08156371,90618.0,90617.0,0.06642226]
[1765268968978,0.08156371,90618.0,90617.0,0.05538556]
[1765268971280,0.08056371,90618.0,90617.0,0.05538556]
[1765268971587,0.08256371,90618.0,90617.0,0.05538556]
[1765268972385,0.08256371,90618.0,90617.0,0.00016556]
[1765268972580,0.0676494,90595.0,90594.0,0.38784]
[1765268972779,0.0676494,90595.0,90594.0,0.05522]
[1765268973889,0.0676494,90595.0,90594.0,0.05822]
[1765268974989,0.0676494,90595.0,90594.0,0.06122]
[1765268976083,0.0676494,90595.0,90594.0,0.06022]
[1765268976390,0.0676494,90595.0,90594.0,0.05922]
[1765268980583,0.0676494,90595.0,90594.0,0.03104]
[1765268980994,0.0676494,90595.0,90594.0,0.05922]
[1765268990006,0.0676494,90595.0,90594.0,0.004]
[1765268990194,0.0676494,90595.0,90594.0,0.03104]
[1765268990402,0.09161731,90595.0,90594.0,0.05922]
[1765268993408,0.45241731,90595.0,90594.0,0.05922]
[1765268994107,0.45241731,90595.0,90591.0,0.01447092]
[1765268994108,0.0672298,90592.0,90591.0,0.01447092]
[1765268994309,0.0672311,90581.0,90580.0,0.07546787]
[1765268994496,0.45199901,90581.0,90580.0,0.02865]
[1765268994903,0.0672322,90572.0,90571.0,0.07472787]
[1765268995099,0.0672322,90572.0,90571.0,0.05656]
[1765268996103,0.0672322,90572.0,90571.0,0.05756]
[1765269000004,0.09122443,90572.0,90571.0,0.05756]
[1765269005507,0.08018223,90572.0,90571.0,0.47756]
[1765269005706,0.02399223,90572.0,90571.0,0.47756]
[1765269005909,0.0110421,90574.0,90573.0,0.0719]
[1765269006109,0.0679121,90574.0,90573.0,0.0719]
[1765269006319,0.09189987,90574.0,90573.0,0.0719]
[1765269006620,0.09189987,90574.0,90573.0,0.05446]
[1765269008420,0.09189987,90574.0,90569.0,0.3608]
[1765269008421,0.0841125,90570.0,90569.0,0.3608]
[1765269008612,0.0841125,90570.0,90553.0,0.05945337]
[1765269008613,0.0679129,90566.0,90560.0,0.04681787]
[1765269008811,0.09190067,90566.0,90558.0,0.3608]
[1765269010113,0.09190067,90566.0,90565.0,0.00210419]
[1765269010913,0.0679133,90563.0,90558.0,0.3608]
[1765269011112,0.09190107,90563.0,90558.0,0.3608]
[1765269012614,0.49669045,90563.0,90562.0,0.00216556]
[1765269012914,0.45270107,90563.0,90562.0,0.00216556]
[1765269013720,0.45270107,90563.0,90553.0,0.04681787]
[1765269013721,0.0679144,90554.0,90553.0,0.04681787]
[1765269013925,0.0841151,90548.0,90547.0,0.4263052]
[1765269014223,0.0841151,90548.0,90547.0,0.41526]
[1765269014425,0.0841151,90548.0,90547.0,0.05446]
[1765269014622,0.0679164,90538.0,90537.0,0.3608]
[1765269014924,0.05687,90521.0,90520.0,0.12833637]
[1765269015219,0.05687,90521.0,90520.0,0.05446]
[1765269015420,0.05687,90516.0,90515.0,0.0284248]
[1765269015626,0.05687,90516.0,90515.0,0.0555648]
[1765269015836,0.05698612,90516.0,90515.0,0.0555648]
[1765269016014,0.06803512,90516.0,90515.0,0.0555648]
[1765269016216,0.06803512,90516.0,90515.0,0.0011048]
[1765269016416,0.0679195,90512.0,90511.0,0.00016565]
[1765269016624,0.0162,90515.0,90490.0,0.0011051]
[1765269016625,0.0110509,90501.0,90490.0,0.0011051]
[1765269016826,0.0731891,90500.0,90499.0,0.35855305]
[1765269017028,0.067922,90492.0,90491.0,0.3608]
[1765269017221,0.05687,90491.0,90490.0,0.0011051]
[1765269017419,0.41767,90491.0,90490.0,0.0011051]
[1765269018322,0.41612517,90491.0,90490.0,0.002]
[1765269018528,0.0679232,90482.0,90481.0,0.00016575]
[1765269019233,0.0841232,90482.0,90481.0,0.00016575]
[1765269019418,0.0679243,90473.0,90472.0,0.04681787]
[1765269019724,0.05687,90467.0,90466.0,0.05458506]
[1765269020329,0.05687,90467.0,90466.0,0.02744506]
[1765269020524,0.05687,90467.0,90466.0,0.05458506]
[1765269021930,0.05687,90467.0,90466.0,0.05658506]
[1765269022330,0.05687,90467.0,90466.0,0.05858506]
[1765269022825,0.02999304,90473.0,90472.0,0.05691]
[1765269023026,0.05973304,90473.0,90472.0,0.05691]
[1765269024132,0.05973304,90473.0,90472.0,0.05891]
[1765269024625,0.05973304,90473.0,90472.0,0.05991]
[1765269025733,0.00011304,90473.0,90472.0,0.42071]
[1765269025931,0.0706721,90491.0,90490.0,0.05691]
[1765269026630,0.05962,90491.0,90490.0,0.05691]
[1765269027217,0.06062,90491.0,90490.0,0.05691]
[1765269027621,0.06362,90491.0,90490.0,0.05691]
[1765269030922,0.004,90491.0,90490.0,0.05691]
[1765269031123,0.003,90491.0,90490.0,0.05691]
[1765269031323,0.06362,90491.0,90490.0,0.05691]
[1765269031929,0.06262,90491.0,90490.0,0.05691]
[1765269032434,0.03288,90491.0,90490.0,0.44691]
[1765269032929,0.03188,90491.0,90490.0,0.44691]
[1765269033524,0.002,90491.0,90490.0,0.44691]
[1765269033924,0.03188,90491.0,90490.0,0.44691]
[1765269034325,0.06162,90491.0,90490.0,0.05691]
[1765269034625,0.05962,90491.0,90490.0,0.05691]
[1765269034817,0.06162,90491.0,90490.0,0.05691]
[1765269035428,0.03088,90491.0,90490.0,0.13691]
[1765269035925,0.03088,90491.0,90490.0,0.34691]
[1765269036635,0.06062,90491.0,90490.0,0.34691]
[1765269036837,0.06162,90491.0,90490.0,0.34691]
[1765269038631,0.03188,90491.0,90490.0,0.34691]
[1765269038822,0.06162,90491.0,90490.0,0.34691]
[1765269041226,0.06162,90491.0,90490.0,0.36364]
[1765269041931,0.06162,90491.0,90490.0,0.3647451]
[1765269044329,0.08597938,90491.0,90490.0,0.3647451]
[1765269046042,0.08597938,90491.0,90490.0,0.3480151]
[1765269048638,0.02635938,90491.0,90490.0,0.3654551]
[1765269048845,0.05944978,90510.0,90509.0,0.05691]
[1765269049040,0.05962,90518.0,90517.0,0.0679589]
[1765269049239,0.088378,90525.0,90524.0,0.05691]
[1765269049440,0.07733,90525.0,90524.0,0.05691]
[1765269050736,0.08133,90525.0,90524.0,0.05691]
[1765269051148,0.05962,90518.0,90517.0,0.41771]
[1765269051538,0.0706688,90518.0,90517.0,0.41771]
[1765269052341,0.0726688,90518.0,90517.0,0.41771]
[1765269052544,0.06162,90518.0,90517.0,0.41771]
[1765269052848,0.06162,90518.0,90517.0,0.81771]
[1765269054237,0.002,90518.0,90517.0,0.81771]
[1765269054443,0.03148,90518.0,90517.0,0.56771]
[1765269054637,0.05929,90518.0,90517.0,0.56771]
[1765269056135,0.05929,90518.0,90517.0,0.41771]
[1765269056443,0.05929,90518.0,90517.0,0.05691]
[1765269059647,0.05729,90516.0,90515.0,0.05614575]
[1765269061939,0.05829,90516.0,90515.0,0.05614575]
[1765269063444,0.05829,90516.0,90515.0,0.02888575]
[1765269063644,0.05829,90516.0,90515.0,0.05641575]
[1765269064443,0.05829,90516.0,90515.0,0.46641575]
[1765269064444,0.001,90516.0,90515.0,0.46641575]
[1765269064746,0.001,90516.0,90515.0,0.47868575]
[1765269064939,0.0110477,90528.0,90527.0,0.05589]
[1765269065135,0.09265491,90528.0,90527.0,0.02836]
[1765269065339,0.0688477,90528.0,90527.0,0.02836]
[1765269065643,0.0688477,90528.0,90527.0,0.05589]
[1765269066547,0.0718477,90528.0,90527.0,0.05589]
[1765269066750,0.003,90528.0,90527.0,0.05589]
[1765269067148,0.003,90528.0,90527.0,0.40589]
[1765269067536,0.004,90528.0,90527.0,0.40589]
[1765269067945,0.001,90528.0,90527.0,0.40589]
[1765269068140,0.002,90528.0,90527.0,0.40589]
[1765269068646,0.0110471,90533.0,90532.0,0.05589]
[1765269069151,0.0408771,90533.0,90532.0,0.05589]
[1765269069543,0.0688471,90533.0,90532.0,0.05589]
[1765269069736,0.0408771,90533.0,90532.0,0.05589]
[1765269069940,0.0926419,90533.0,90532.0,0.05589]
[1765269070353,0.0688471,90533.0,90532.0,0.05589]
[1765269071451,0.0698471,90533.0,90532.0,0.05589]
[1765269071641,0.0708471,90533.0,90532.0,0.05589]
[1765269071837,0.0698471,90533.0,90532.0,0.05589]
[1765269072045,0.0718471,90533.0,90532.0,0.05589]
[1765269072248,0.09564802,90533.0,90532.0,0.05589]
[1765269073949,0.0688479,90525.0,90524.0,0.41669]
[1765269075955,0.0688476,90529.0,90528.0,0.0669376]
[1765269076356,0.0688476,90529.0,90528.0,0.05589]
[1765269077445,0.0688479,90525.0,90524.0,0.38916]
[1765269078358,0.09270212,90525.0,90524.0,0.38916]
[1765269078555,0.09270212,90525.0,90524.0,0.41669]
[1765269079952,0.011049,90516.0,90515.0,0.00016575]
[1765269080152,0.086009,90516.0,90515.0,0.00016575]
[1765269080360,0.10985989,90516.0,90515.0,0.00016575]
[1765269080952,0.10985989,90516.0,90515.0,0.00116575]
[1765269081152,0.10985989,90516.0,90515.0,0.03152575]
[1765269081951,0.10985989,90516.0,90515.0,0.00316575]
[1765269083162,0.00016575,90534.0,90533.0,0.0554]
[1765269083456,0.00016575,90534.0,90533.0,0.4054]
[1765269084060,0.05709575,90534.0,90533.0,0.4054]
[1765269084465,0.02900575,90534.0,90533.0,0.4054]
[1765269085257,0.03000575,90534.0,90533.0,0.4054]
[1765269085755,0.03200575,90534.0,90533.0,0.4054]
[1765269086152,0.03200575,90534.0,90533.0,0.1454]
[1765269086566,0.05909575,90534.0,90533.0,0.1454]